[Event "*** Titled Tuesday Blitz"]
[Site "Chess.com"]
[Date "2020.05.26"]
[Round "6"]
[White "MarceloPlaya"]
[Black "Slovak_fighter2000"]
[Result "0-1"]
[WhiteElo "2356"]
[BlackElo "2477"]
[TimeControl "180+1"]
[EndTime "11:08:15 PDT"]
[Termination "Slovak_fighter2000 won on time"]

1. e4 {[%clk 0:03:00.9]} 1... e6 {[%clk 0:02:59.4]} 2. d4 {[%clk 0:03:00.1]}
2... d5 {[%clk 0:02:59.3]} 3. Nc3 {[%clk 0:02:58.4]} 3... Nf6 {[%clk 0:02:59]}
4. Bd3 {[%clk 0:02:57.3]} 4... c5 {[%clk 0:02:57.1]} 5. Nf3 {[%clk 0:02:54.4]}
5... Nc6 {[%clk 0:02:56.1]} 6. exd5 {[%clk 0:02:53.1]} 6... Nxd5 {[%clk
0:02:55.1]} 7. dxc5 {[%clk 0:02:43.4]} 7... Bxc5 {[%clk 0:02:53.1]} 8. Ne4
{[%clk 0:02:41.9]} 8... Be7 {[%clk 0:02:52]} 9. O-O {[%clk 0:02:35.6]} 9... O-O
{[%clk 0:02:51.1]} 10. a3 {[%clk 0:02:34.4]} 10... b6 {[%clk 0:02:50.1]} 11. c4
{[%clk 0:02:31.6]} 11... Nf6 {[%clk 0:02:49.4]} 12. Qc2 {[%clk 0:02:30.4]} 12...
h6 {[%clk 0:02:41.2]} 13. b4 {[%clk 0:02:24.5]} 13... Bb7 {[%clk 0:02:40]} 14.
Bb2 {[%clk 0:02:23.3]} 14... Nxe4 {[%clk 0:02:36.5]} 15. Bxe4 {[%clk 0:02:22.4]}
15... Bf6 {[%clk 0:02:37.1]} 16. Rfd1 {[%clk 0:02:03.2]} 16... Qe7 {[%clk
0:02:36.1]} 17. Rac1 {[%clk 0:01:53]} 17... Rfd8 {[%clk 0:02:32.2]} 18. h3
{[%clk 0:01:43.8]} 18... Bxb2 {[%clk 0:02:21.7]} 19. Qxb2 {[%clk 0:01:42.7]}
19... Rxd1+ {[%clk 0:02:17]} 20. Rxd1 {[%clk 0:01:41.4]} 20... Rd8 {[%clk
0:02:17.6]} 21. Rxd8+ {[%clk 0:01:33.2]} 21... Qxd8 {[%clk 0:02:18.5]} 22. c5
{[%clk 0:01:20.3]} 22... bxc5 {[%clk 0:02:12.3]} 23. bxc5 {[%clk 0:01:19.4]}
23... Qc7 {[%clk 0:02:12.8]} 24. Nd2 {[%clk 0:01:10.6]} 24... Nd8 {[%clk
0:02:08.7]} 25. Qc3 {[%clk 0:01:02.2]} 25... Bc6 {[%clk 0:02:04.3]} 26. Bd3
{[%clk 0:00:55.9]} 26... Nb7 {[%clk 0:01:59]} 27. Nb3 {[%clk 0:00:54.3]} 27...
Bd5 {[%clk 0:01:40]} 28. Bc4 {[%clk 0:00:50.3]} 28... Be4 {[%clk 0:01:29.5]} 29.
Bb5 {[%clk 0:00:37.3]} 29... Bd5 {[%clk 0:01:08.7]} 30. c6 {[%clk 0:00:34]}
30... Nd6 {[%clk 0:01:08.3]} 31. Ba4 {[%clk 0:00:28.3]} 31... f6 {[%clk
0:00:43.9]} 32. Nd4 {[%clk 0:00:27.2]} 32... Kf7 {[%clk 0:00:41.7]} 33. Nb5
{[%clk 0:00:17.5]} 33... Nxb5 {[%clk 0:00:37.1]} 34. Bxb5 {[%clk 0:00:17.1]}
34... Ke7 {[%clk 0:00:33.8]} 35. Qc5+ {[%clk 0:00:15.9]} 35... Ke8 {[%clk
0:00:30]} 36. a4 {[%clk 0:00:15.2]} 36... Kf7 {[%clk 0:00:23.5]} 37. a5 {[%clk
0:00:12.4]} 37... g5 {[%clk 0:00:09.3]} 38. Ba4 {[%clk 0:00:11.1]} 38... h5
{[%clk 0:00:08]} 39. Bd1 {[%clk 0:00:08.9]} 39... h4 {[%clk 0:00:07.7]} 40. Bf3
{[%clk 0:00:07.9]} 40... Bxf3 {[%clk 0:00:05]} 41. gxf3 {[%clk 0:00:07.7]} 41...
Qe7 {[%clk 0:00:04.6]} 42. Qb5 {[%clk 0:00:04.5]} 42... Qd6 {[%clk 0:00:02.6]}
43. Qb7+ {[%clk 0:00:03]} 43... Ke8 {[%clk 0:00:01.6]} 0-1

[Event "*** Titled Tuesday Blitz"]
[Site "Chess.com"]
[Date "2020.05.26"]
[Round "6"]
[White "sergiochess83"]
[Black "AlexOstrovskiy"]
[Result "1-0"]
[WhiteElo "2850"]
[BlackElo "2624"]
[TimeControl "180+1"]
[EndTime "11:08:16 PDT"]
[Termination "sergiochess83 won by resignation"]

1. e4 {[%clk 0:03:00.9]} 1... c6 {[%clk 0:02:58.9]} 2. d4 {[%clk 0:03:00]} 2...
d5 {[%clk 0:02:59.8]} 3. e5 {[%clk 0:03:00.6]} 3... c5 {[%clk 0:02:59.6]} 4.
dxc5 {[%clk 0:02:59.3]} 4... e6 {[%clk 0:02:58.5]} 5. Be3 {[%clk 0:02:56.2]}
5... Nd7 {[%clk 0:02:57.9]} 6. Bb5 {[%clk 0:02:50.1]} 6... Ne7 {[%clk
0:02:56.1]} 7. c3 {[%clk 0:02:36.1]} 7... a6 {[%clk 0:02:40.9]} 8. Bxd7+ {[%clk
0:02:33.2]} 8... Bxd7 {[%clk 0:02:40.9]} 9. Nf3 {[%clk 0:02:32.5]} 9... Nf5
{[%clk 0:02:37.3]} 10. Bd4 {[%clk 0:02:31.7]} 10... Rc8 {[%clk 0:02:35.2]} 11.
Nbd2 {[%clk 0:02:29.9]} 11... Bxc5 {[%clk 0:02:32.3]} 12. Bxc5 {[%clk
0:02:29.3]} 12... Rxc5 {[%clk 0:02:33.2]} 13. Nb3 {[%clk 0:02:29.9]} 13... Rc8
{[%clk 0:02:19.9]} 14. Nbd4 {[%clk 0:02:25.8]} 14... Nxd4 {[%clk 0:02:06.9]} 15.
Nxd4 {[%clk 0:02:25.9]} 15... Qg5 {[%clk 0:02:07.3]} 16. Qe2 {[%clk 0:02:17.5]}
16... Qxg2 {[%clk 0:02:02.2]} 17. O-O-O {[%clk 0:02:17.3]} 17... Qg5+ {[%clk
0:01:41.8]} 18. Kb1 {[%clk 0:02:15]} 18... g6 {[%clk 0:01:20]} 19. Rdg1 {[%clk
0:02:02.5]} 19... Qe7 {[%clk 0:01:16.9]} 20. h4 {[%clk 0:02:02.5]} 20... h5
{[%clk 0:01:17.2]} 21. Qe3 {[%clk 0:01:56.9]} 21... Rc4 {[%clk 0:01:15.8]} 22.
Rg3 {[%clk 0:01:47.3]} 22... b5 {[%clk 0:01:11.4]} 23. b3 {[%clk 0:01:23]} 23...
Rc7 {[%clk 0:01:02.5]} 24. Rf3 {[%clk 0:01:22.7]} 24... a5 {[%clk 0:00:54.4]}
25. Qf4 {[%clk 0:01:16.5]} 25... b4 {[%clk 0:00:42.7]} 26. Rc1 {[%clk
0:01:16.1]} 26... O-O {[%clk 0:00:36.7]} 27. Rg3 {[%clk 0:00:59.2]} 27... Rxc3
{[%clk 0:00:28]} 28. Rgxc3 {[%clk 0:00:40.4]} 28... bxc3 {[%clk 0:00:28.9]} 29.
Rxc3 {[%clk 0:00:41]} 29... Rc8 {[%clk 0:00:24.9]} 30. Rxc8+ {[%clk 0:00:28.5]}
30... Bxc8 {[%clk 0:00:25.8]} 31. Kb2 {[%clk 0:00:22.3]} 31... Qc5 {[%clk
0:00:23.3]} 32. a3 {[%clk 0:00:19.2]} 32... Ba6 {[%clk 0:00:22.5]} 33. Qe3
{[%clk 0:00:18.8]} 33... Qb6 {[%clk 0:00:12.2]} 34. a4 {[%clk 0:00:13.8]} 34...
Qc7 {[%clk 0:00:04.7]} 35. f4 {[%clk 0:00:12.7]} 35... Qe7 {[%clk 0:00:02.7]}
36. Qe1 {[%clk 0:00:11.9]} 36... Qc7 {[%clk 0:00:01.9]} 37. Qc3 {[%clk
0:00:10.7]} 37... Qb6 {[%clk 0:00:02.5]} 38. Kc2 {[%clk 0:00:08.3]} 38... Qd8
{[%clk 0:00:01.9]} 39. Qe1 {[%clk 0:00:06.6]} 39... Qc7+ {[%clk 0:00:02.2]} 40.
Kb2 {[%clk 0:00:06.6]} 40... Qb6 {[%clk 0:00:03.1]} 41. Qd2 {[%clk 0:00:06.8]}
41... Qd8 {[%clk 0:00:03.7]} 42. Nf3 {[%clk 0:00:06.9]} 42... Qb6 {[%clk
0:00:03.8]} 43. Qd4 {[%clk 0:00:06.7]} 43... Qc7 {[%clk 0:00:03.6]} 44. Ng5
{[%clk 0:00:04.8]} 44... Qd8 {[%clk 0:00:02.3]} 45. Kc3 {[%clk 0:00:04.5]} 45...
Qc7+ {[%clk 0:00:02.6]} 46. Kb2 {[%clk 0:00:04.8]} 46... Qd8 {[%clk 0:00:03.5]}
47. Qa7 {[%clk 0:00:04.4]} 47... d4 {[%clk 0:00:02.7]} 48. Qxf7+ {[%clk
0:00:04.2]} 1-0

[Event "*** Titled Tuesday Blitz"]
[Site "Chess.com"]
[Date "2020.05.26"]
[Round "6"]
[White "Nathan_Filgueiras"]
[Black "JoySpaceman"]
[Result "0-1"]
[WhiteElo "2328"]
[BlackElo "2501"]
[TimeControl "180+1"]
[EndTime "11:08:18 PDT"]
[Termination "JoySpaceman won on time"]

1. e4 {[%clk 0:03:00.9]} 1... c5 {[%clk 0:02:59.6]} 2. Nf3 {[%clk 0:03:00.9]}
2... e6 {[%clk 0:03:00]} 3. d4 {[%clk 0:02:59.9]} 3... cxd4 {[%clk 0:03:00.9]}
4. Nxd4 {[%clk 0:03:00.8]} 4... a6 {[%clk 0:03:01.5]} 5. Bd3 {[%clk 0:03:00.3]}
5... Bc5 {[%clk 0:03:01.2]} 6. Nb3 {[%clk 0:02:53.7]} 6... Be7 {[%clk
0:03:01.4]} 7. Qg4 {[%clk 0:02:52.5]} 7... Nf6 {[%clk 0:03:00.6]} 8. Qxg7 {[%clk
0:02:30]} 8... Rg8 {[%clk 0:03:00.9]} 9. Qh6 {[%clk 0:02:30]} 9... Nc6 {[%clk
0:02:13.6]} 10. g3 {[%clk 0:02:11.8]} 10... d5 {[%clk 0:01:51.4]} 11. exd5
{[%clk 0:02:00.3]} 11... Qxd5 {[%clk 0:01:38.6]} 12. O-O {[%clk 0:01:53]} 12...
Ne5 {[%clk 0:01:31.1]} 13. Be2 {[%clk 0:01:38.9]} 13... b5 {[%clk 0:01:09.9]}
14. Nc3 {[%clk 0:01:34]} 14... Nf3+ {[%clk 0:01:07.6]} 15. Bxf3 {[%clk
0:01:30.9]} 15... Qxf3 {[%clk 0:01:07.3]} 16. Qe3 {[%clk 0:01:27.9]} 16... Qh5
{[%clk 0:01:03.1]} 17. Qe2 {[%clk 0:00:40]} 17... Rg4 {[%clk 0:00:31]} 18. f3
{[%clk 0:00:25.4]} 18... Rc4 {[%clk 0:00:30.4]} 19. Be3 {[%clk 0:00:22.8]} 19...
Bb7 {[%clk 0:00:27.6]} 20. Rad1 {[%clk 0:00:21.9]} 20... Rxc3 {[%clk 0:00:20.2]}
21. bxc3 {[%clk 0:00:21.5]} 21... Nd5 {[%clk 0:00:20.9]} 22. Bd4 {[%clk
0:00:20.1]} 22... Rc8 {[%clk 0:00:14.3]} 23. Qf2 {[%clk 0:00:19.1]} 23... Bd6
{[%clk 0:00:12.1]} 24. Rde1 {[%clk 0:00:10.5]} 24... Qg6 {[%clk 0:00:11.7]} 25.
Kh1 {[%clk 0:00:06.6]} 25... Ke7 {[%clk 0:00:11.1]} 26. Nd2 {[%clk 0:00:06.6]}
26... Nxc3 {[%clk 0:00:10.4]} 27. Ne4 {[%clk 0:00:06.4]} 27... Nxe4 {[%clk
0:00:10.3]} 28. fxe4 {[%clk 0:00:07.3]} 28... Bxe4+ {[%clk 0:00:10.7]} 29. Kg1
{[%clk 0:00:07.7]} 29... f5 {[%clk 0:00:08.8]} 30. Be3 {[%clk 0:00:07.3]} 30...
h5 {[%clk 0:00:08.3]} 31. Bf4 {[%clk 0:00:07.3]} 31... Bc5 {[%clk 0:00:08.9]}
32. Be3 {[%clk 0:00:06.9]} 32... Bb4 {[%clk 0:00:09.4]} 33. Re2 {[%clk
0:00:06.5]} 33... h4 {[%clk 0:00:09.4]} 34. Bf4 {[%clk 0:00:05.7]} 34... Qg4
{[%clk 0:00:08.5]} 35. Rfe1 {[%clk 0:00:02.8]} 35... Bc5 {[%clk 0:00:07.5]} 36.
Be3 {[%clk 0:00:02.5]} 36... Bb4 {[%clk 0:00:08.1]} 37. Bf4 {[%clk 0:00:02.4]}
37... Bxe1 {[%clk 0:00:08.4]} 38. Rxe1 {[%clk 0:00:02.4]} 38... Rxc2 {[%clk
0:00:07.3]} 39. Qe3 {[%clk 0:00:02.4]} 39... Rg2+ {[%clk 0:00:06.4]} 40. Kf1
{[%clk 0:00:03.3]} 40... Rxh2 {[%clk 0:00:06.1]} 41. Qc5+ {[%clk 0:00:03.6]}
41... Kf7 {[%clk 0:00:06.1]} 42. Qc7+ {[%clk 0:00:03.7]} 42... Kg6 {[%clk
0:00:06.7]} 43. Qe7 {[%clk 0:00:03.6]} 43... Qf3+ {[%clk 0:00:06.8]} 0-1

[Event "*** Titled Tuesday Blitz"]
[Site "Chess.com"]
[Date "2020.05.26"]
[Round "6"]
[White "kleinebeer98"]
[Black "Hydrargyrum_Girl"]
[Result "1-0"]
[WhiteElo "2675"]
[BlackElo "2370"]
[TimeControl "180+1"]
[EndTime "11:08:21 PDT"]
[Termination "kleinebeer98 won on time"]

1. e4 {[%clk 0:03:00.9]} 1... e5 {[%clk 0:02:58.1]} 2. Nf3 {[%clk 0:03:00.3]}
2... Nc6 {[%clk 0:02:58.3]} 3. Nc3 {[%clk 0:03:00.9]} 3... Nf6 {[%clk
0:02:58.5]} 4. a3 {[%clk 0:03:00.5]} 4... d6 {[%clk 0:02:54.6]} 5. d4 {[%clk
0:03:00.2]} 5... exd4 {[%clk 0:02:54.9]} 6. Nxd4 {[%clk 0:03:01.1]} 6... Bd7
{[%clk 0:02:55.3]} 7. g3 {[%clk 0:02:57.3]} 7... g6 {[%clk 0:02:55.4]} 8. Bg2
{[%clk 0:02:57.7]} 8... Bg7 {[%clk 0:02:55.5]} 9. Nb3 {[%clk 0:02:56.4]} 9...
O-O {[%clk 0:02:55.4]} 10. O-O {[%clk 0:02:56.9]} 10... Re8 {[%clk 0:02:55.1]}
11. Re1 {[%clk 0:02:56.9]} 11... Rb8 {[%clk 0:02:55.3]} 12. h3 {[%clk
0:02:56.5]} 12... Be6 {[%clk 0:02:53.2]} 13. Be3 {[%clk 0:02:53.8]} 13... Bxb3
{[%clk 0:02:52.6]} 14. cxb3 {[%clk 0:02:54.7]} 14... a6 {[%clk 0:02:53.1]} 15.
Qd2 {[%clk 0:02:53.6]} 15... Nd7 {[%clk 0:02:50.7]} 16. Rad1 {[%clk 0:02:52.1]}
16... Nc5 {[%clk 0:02:50.3]} 17. b4 {[%clk 0:02:51.5]} 17... Ne6 {[%clk
0:02:42.8]} 18. Nd5 {[%clk 0:02:49.9]} 18... Ncd4 {[%clk 0:02:33]} 19. f4 {[%clk
0:02:37.5]} 19... c5 {[%clk 0:02:30.5]} 20. Kh2 {[%clk 0:02:31.8]} 20... Nc7
{[%clk 0:02:29.8]} 21. Nc3 {[%clk 0:02:21.1]} 21... Ncb5 {[%clk 0:02:23.5]} 22.
Nxb5 {[%clk 0:02:17.5]} 22... axb5 {[%clk 0:02:24.4]} 23. e5 {[%clk 0:02:09.6]}
23... dxe5 {[%clk 0:02:22.6]} 24. bxc5 {[%clk 0:02:09.1]} 24... exf4 {[%clk
0:02:10.9]} 25. Bxf4 {[%clk 0:02:02.3]} 25... Rxe1 {[%clk 0:02:06.4]} 26. Qxe1
{[%clk 0:01:59]} 26... Rc8 {[%clk 0:02:00.2]} 27. Bd6 {[%clk 0:01:58.1]} 27...
Nc6 {[%clk 0:01:45.4]} 28. b4 {[%clk 0:01:53.5]} 28... Qg5 {[%clk 0:01:44.1]}
29. Rd5 {[%clk 0:01:46.5]} 29... Qf6 {[%clk 0:01:39.1]} 30. Qe2 {[%clk
0:01:40.1]} 30... Qb2 {[%clk 0:01:36.9]} 31. Qxb5 {[%clk 0:01:24.1]} 31... Nd4
{[%clk 0:01:19.8]} 32. Qd3 {[%clk 0:01:14.2]} 32... Re8 {[%clk 0:01:17.1]} 33.
Rxd4 {[%clk 0:00:26]} 33... Bxd4 {[%clk 0:01:14.9]} 34. h4 {[%clk 0:00:17.6]}
34... Re2 {[%clk 0:01:06.1]} 35. Qf3 {[%clk 0:00:17.2]} 35... Qd2 {[%clk
0:00:57.1]} 36. Qxb7 {[%clk 0:00:15.5]} 36... Kg7 {[%clk 0:00:46.2]} 37. Qa8
{[%clk 0:00:11.2]} 37... Qe3 {[%clk 0:00:10.7]} 38. Qf8+ {[%clk 0:00:09]} 38...
Kf6 {[%clk 0:00:06.5]} 39. Qd8+ {[%clk 0:00:05.3]} 39... Kf5 {[%clk 0:00:03.3]}
40. Qd7+ {[%clk 0:00:04.1]} 40... Kf6 {[%clk 0:00:03.5]} 41. Qd8+ {[%clk
0:00:03.1]} 41... Kf5 {[%clk 0:00:03.9]} 42. Qc8+ {[%clk 0:00:03.3]} 42... Kf6
{[%clk 0:00:04.8]} 43. Qc6 {[%clk 0:00:03.3]} 43... Qg1+ {[%clk 0:00:04.2]} 44.
Kh3 {[%clk 0:00:03.8]} 44... Kg7 {[%clk 0:00:04.5]} 45. Qa8 {[%clk 0:00:02.2]}
1-0

[Event "*** Titled Tuesday Blitz"]
[Site "Chess.com"]
[Date "2020.05.26"]
[Round "6"]
[White "Kapibara_Warri0r"]
[Black "lelya96"]
[Result "1-0"]
[WhiteElo "2094"]
[BlackElo "2257"]
[TimeControl "180+1"]
[EndTime "11:08:21 PDT"]
[Termination "Kapibara_Warri0r won by checkmate"]

1. e4 {[%clk 0:03:00.9]} 1... c5 {[%clk 0:02:59.6]} 2. Nf3 {[%clk 0:03:00.7]}
2... Nf6 {[%clk 0:02:58.4]} 3. e5 {[%clk 0:02:58.9]} 3... Nd5 {[%clk 0:02:58.4]}
4. c3 {[%clk 0:02:57.8]} 4... e6 {[%clk 0:02:56.6]} 5. d4 {[%clk 0:02:57.8]}
5... Nc6 {[%clk 0:02:56.3]} 6. a3 {[%clk 0:02:53]} 6... b6 {[%clk 0:02:52.6]} 7.
Bd3 {[%clk 0:02:50.1]} 7... Bb7 {[%clk 0:02:52.2]} 8. O-O {[%clk 0:02:39.9]}
8... Be7 {[%clk 0:02:51.3]} 9. Be4 {[%clk 0:02:15.9]} 9... Na5 {[%clk
0:02:35.8]} 10. b4 {[%clk 0:02:03]} 10... cxb4 {[%clk 0:02:19.8]} 11. axb4
{[%clk 0:01:54.8]} 11... Nc4 {[%clk 0:02:19.4]} 12. b5 {[%clk 0:01:38]} 12...
Qc7 {[%clk 0:02:07.8]} 13. Qe2 {[%clk 0:01:23.3]} 13... d6 {[%clk 0:02:02.3]}
14. Ra4 {[%clk 0:01:09.9]} 14... Na5 {[%clk 0:01:53]} 15. c4 {[%clk 0:01:04.3]}
15... Nb4 {[%clk 0:01:35.2]} 16. Bxb7 {[%clk 0:00:53.5]} 16... Qxb7 {[%clk
0:01:19.6]} 17. Rxb4 {[%clk 0:00:53.3]} 17... d5 {[%clk 0:01:20.5]} 18. c5
{[%clk 0:00:45.8]} 18... bxc5 {[%clk 0:01:18.9]} 19. Ra4 {[%clk 0:00:43.4]}
19... Nc4 {[%clk 0:01:16.4]} 20. dxc5 {[%clk 0:00:42.5]} 20... Bxc5 {[%clk
0:01:15.7]} 21. Nc3 {[%clk 0:00:24.5]} 21... O-O {[%clk 0:01:11.6]} 22. Be3
{[%clk 0:00:20.6]} 22... Nxe3 {[%clk 0:01:01.7]} 23. fxe3 {[%clk 0:00:21.5]}
23... Rfc8 {[%clk 0:00:58.7]} 24. Qd3 {[%clk 0:00:19]} 24... Qb6 {[%clk
0:00:58.2]} 25. Nd4 {[%clk 0:00:18.9]} 25... Bf8 {[%clk 0:00:54.1]} 26. Raa1
{[%clk 0:00:15.7]} 26... Rc4 {[%clk 0:00:52.8]} 27. Kh1 {[%clk 0:00:10.5]} 27...
Rac8 {[%clk 0:00:52.7]} 28. Nce2 {[%clk 0:00:10.8]} 28... Qb8 {[%clk 0:00:48.2]}
29. Rac1 {[%clk 0:00:11]} 29... Qxe5 {[%clk 0:00:47.8]} 30. Rxc4 {[%clk
0:00:10.3]} 30... dxc4 {[%clk 0:00:48.1]} 31. Qc3 {[%clk 0:00:10.3]} 31... f6
{[%clk 0:00:44.8]} 32. Nc6 {[%clk 0:00:10.2]} 32... Qc7 {[%clk 0:00:43]} 33. Qd4
{[%clk 0:00:09.8]} 33... Qb6 {[%clk 0:00:33.4]} 34. Qxc4 {[%clk 0:00:10]} 34...
Qxe3 {[%clk 0:00:31.6]} 35. Rf3 {[%clk 0:00:09.3]} 35... Qd2 {[%clk 0:00:22.7]}
36. Qxe6+ {[%clk 0:00:09]} 36... Kh8 {[%clk 0:00:21.6]} 37. Qxc8 {[%clk
0:00:09.5]} 37... Qd6 {[%clk 0:00:20.2]} 38. Rd3 {[%clk 0:00:08.1]} 38... Qc5
{[%clk 0:00:19.7]} 39. Rd8 {[%clk 0:00:06.4]} 39... h6 {[%clk 0:00:20.6]} 40.
Rxf8+ {[%clk 0:00:05.9]} 40... Kh7 {[%clk 0:00:21.5]} 41. Rh8+ {[%clk
0:00:06.4]} 41... Kg6 {[%clk 0:00:22.1]} 42. Qe8+ {[%clk 0:00:07.1]} 42... Kg5
{[%clk 0:00:22.6]} 43. h4+ {[%clk 0:00:06.4]} 43... Kg4 {[%clk 0:00:20.1]} 44.
Qe4+ {[%clk 0:00:06.6]} 44... Kh5 {[%clk 0:00:19.7]} 45. Qf3+ {[%clk 0:00:06.5]}
45... Kg6 {[%clk 0:00:17.4]} 46. Nf4+ {[%clk 0:00:06.9]} 46... Kf7 {[%clk
0:00:17.4]} 47. Qd5+ {[%clk 0:00:07.2]} 47... Qxd5 {[%clk 0:00:15.6]} 48. Nxd5
{[%clk 0:00:08.1]} 48... Ke6 {[%clk 0:00:15.3]} 49. Nxa7 {[%clk 0:00:09]} 49...
Kxd5 {[%clk 0:00:15.5]} 50. b6 {[%clk 0:00:09.9]} 50... Ke5 {[%clk 0:00:15.7]}
51. b7 {[%clk 0:00:10.4]} 51... g5 {[%clk 0:00:16.6]} 52. b8=Q+ {[%clk
0:00:10.8]} 52... Kf5 {[%clk 0:00:16.9]} 53. Qb5+ {[%clk 0:00:10.6]} 53... Kg4
{[%clk 0:00:17.1]} 54. Qc4+ {[%clk 0:00:10]} 54... Kh5 {[%clk 0:00:16.8]} 55.
Qe2+ {[%clk 0:00:09.7]} 55... Kxh4 {[%clk 0:00:16.5]} 56. Rxh6+ {[%clk
0:00:09.4]} 56... Kg3 {[%clk 0:00:17]} 57. Qf3# {[%clk 0:00:09.5]} 1-0

[Event "*** Titled Tuesday Blitz"]
[Site "Chess.com"]
[Date "2020.05.26"]
[Round "6"]
[White "WinstonSilvakov"]
[Black "EndGameDestroyer"]
[Result "0-1"]
[WhiteElo "2095"]
[BlackElo "2281"]
[TimeControl "180+1"]
[EndTime "11:08:22 PDT"]
[Termination "EndGameDestroyer won on time"]

1. d4 {[%clk 0:03:00.9]} 1... Nf6 {[%clk 0:02:59.7]} 2. e3 {[%clk 0:03:00.5]}
2... e6 {[%clk 0:02:59.6]} 3. Bd3 {[%clk 0:03:00.9]} 3... b6 {[%clk 0:02:59.5]}
4. f4 {[%clk 0:02:58.5]} 4... Bb7 {[%clk 0:02:58.6]} 5. Nf3 {[%clk 0:02:57.8]}
5... c5 {[%clk 0:02:58.5]} 6. c3 {[%clk 0:02:57.2]} 6... Be7 {[%clk 0:02:56.4]}
7. Nbd2 {[%clk 0:02:54]} 7... O-O {[%clk 0:02:52.7]} 8. Qe2 {[%clk 0:02:53.9]}
8... Nc6 {[%clk 0:02:43]} 9. a3 {[%clk 0:02:44.1]} 9... d6 {[%clk 0:02:37.8]}
10. e4 {[%clk 0:02:40.7]} 10... e5 {[%clk 0:02:24.4]} 11. d5 {[%clk 0:02:35.8]}
11... Nb8 {[%clk 0:01:51.5]} 12. fxe5 {[%clk 0:02:34.5]} 12... dxe5 {[%clk
0:01:37.9]} 13. Nxe5 {[%clk 0:02:35.4]} 13... Bd6 {[%clk 0:01:33.8]} 14. Nef3
{[%clk 0:02:06]} 14... Re8 {[%clk 0:01:30.2]} 15. c4 {[%clk 0:02:03.1]} 15...
Nbd7 {[%clk 0:01:20.5]} 16. O-O {[%clk 0:01:47.6]} 16... Qc7 {[%clk 0:01:13.9]}
17. Qf2 {[%clk 0:01:31.3]} 17... Ne5 {[%clk 0:00:39.7]} 18. Nxe5 {[%clk
0:01:28.6]} 18... Rxe5 {[%clk 0:00:38.7]} 19. Re1 {[%clk 0:01:16.6]} 19... Ng4
{[%clk 0:00:22.4]} 20. Qh4 {[%clk 0:01:14.5]} 20... Nxh2 {[%clk 0:00:13]} 21.
Qxh2 {[%clk 0:00:27]} 21... Rxe4 {[%clk 0:00:12.1]} 22. Qxh7+ {[%clk 0:00:21]}
22... Kxh7 {[%clk 0:00:11.2]} 23. Nxe4 {[%clk 0:00:20.5]} 23... Kg8 {[%clk
0:00:09.2]} 24. Bg5 {[%clk 0:00:19.5]} 24... f6 {[%clk 0:00:05.2]} 25. Bd2
{[%clk 0:00:15.7]} 25... Be5 {[%clk 0:00:05.3]} 26. Rab1 {[%clk 0:00:14.6]}
26... Bd4+ {[%clk 0:00:05.7]} 27. Kf1 {[%clk 0:00:12.5]} 27... Kf7 {[%clk
0:00:05.7]} 28. Ke2 {[%clk 0:00:10.2]} 28... Re8 {[%clk 0:00:06]} 29. Kd1 {[%clk
0:00:10.2]} 29... b5 {[%clk 0:00:05.9]} 30. Kc2 {[%clk 0:00:09.6]} 30... a5
{[%clk 0:00:04.7]} 31. cxb5 {[%clk 0:00:08.8]} 31... Bxd5 {[%clk 0:00:04.2]} 32.
b3 {[%clk 0:00:08.8]} 32... c4 {[%clk 0:00:04.1]} 33. bxc4 {[%clk 0:00:06.7]}
33... Bxc4 {[%clk 0:00:05]} 34. Nd6+ {[%clk 0:00:06.3]} 34... Qxd6 {[%clk
0:00:05.4]} 35. Bxc4+ {[%clk 0:00:06.1]} 35... Kf8 {[%clk 0:00:05.3]} 36. Rxe8+
{[%clk 0:00:04.9]} 36... Kxe8 {[%clk 0:00:05.2]} 37. Bxa5 {[%clk 0:00:04.6]}
37... Qc5 {[%clk 0:00:04.2]} 38. Kb3 {[%clk 0:00:02.3]} 38... Bf2 {[%clk
0:00:03.6]} 39. Bb4 {[%clk 0:00:02.2]} 39... Qe3+ {[%clk 0:00:03.6]} 40. Ka4
{[%clk 0:00:03.1]} 40... Qa7+ {[%clk 0:00:03]} 41. Ba5 {[%clk 0:00:02.7]} 41...
Bb6 {[%clk 0:00:02.9]} 0-1